Cogmind - Beta 16.1 *** ADVENTURER MODE // 2026.03.24 @ 13:15:52 Player: robocop Result: Self-destructed Performance ------------- Evolutions (4) 2000 Regions Visited (9) 1800 Robots Destroyed (169) 845 Value Destroyed (8851) 8851 Prototype IDs (11) 220 Alien Tech Used (0) 0 Bonus (4708) 4708 TOTAL SCORE: 18424 Bonus ------- High Alert Combat Kills 1417 Follower Combat Kills 823 Entered Garrisons 600 Used RIF Installer 2000 Friendly Fire -132 Cogmind --------- Core Integrity 568/850 Matter 311/600 Energy 100/100 System Corruption 1% Temperature Cool (0) Movement Core (800) Ox15 Location -6/Factory Parts ------- > --- POWER (1) -------- (None) > --- PROPULSION (4) --- (None) > --- UTILITY (7) ------ High-capacity Storage Unit Improved Matter Compressor Advanced Targeting Computer Relay Coupler [NC] (34) > --- WEAPON (3) ------- Kinetic Spear > --- INVENTORY (20) --- Micro Nuclear Core Micro Nuclear Core Light Angular Momentum Engine Large Storage Unit Gravity Neutralizer Enhanced Optical Array Improved Melee Analysis Suite System Shield Relay Coupler [NC] (35) Relay Coupler [Grunt] (28) Relay Coupler [Grunt] (35) Relay Coupler [Sentry] (23) Improved Remote Datajack Peak State ------------ > --- POWER ------------ Enhanced Fission Core > --- PROPULSION ------- Carbon-fiber Leg Flexi-carbon Leg Thunder Leg > --- UTILITY ---------- High-capacity Storage Unit Active Sensor Suite Advanced Targeting Computer Active Sensor Spoofer Relay Coupler [NC] > --- WEAPON ----------- Heavy Assault Cannon Hypervelocity Gauss Cannon > --- INVENTORY -------- Micro Nuclear Core Micro Nuclear Core Large Storage Unit Gravity Neutralizer Enhanced Optical Array Improved Melee Analysis Suite Improved Light Armor Plating Relay Coupler [NC] Relay Coupler [NC] Relay Coupler [Grunt] Relay Coupler [Grunt] Relay Coupler [Sentry] Heavy Assault Cannon Improved Remote Datajack Kinetic Spear [Rating: 77] Favorites ----------- Power Ion Engine Engine Ion Engine Power Core Enhanced Fission Core Reactor Cold Fusion Reactor Propulsion Light Treads Treads Light Treads Leg Carbon-fiber Leg Wheel Subdweller Monowheel Flight Unit Cooled Nuclear Pulse Thruster Utility Medium Storage Unit Device Seismic Detector Storage Medium Storage Unit Processor Advanced Targeting Computer Hackware Relay Coupler [NC] Protection Improved Light Armor Plating Weapon Gauss Cannon Energy Gun Riot Gun Ballistic Gun Gauss Rifle Ballistic Cannon Gauss Cannon Launcher Grenade Launcher Special Weapon Remote Datajack Impact Weapon Hammer Slashing Weapon Ripper Piercing Weapon Kinetic Spear Build | -11 -10 -10 -8 -8 -8 -8 -7 -7 -6 ------- Run | Yrd Mat Sub Mat Gar Mat Gar Fac Gar Fac Slots Evolved 8 | . . . 4 . . . 2 . 2 Power . | . . . . . . . . . . Propulsion 2 | . . . 1 . . . . . 1 Utility 5 | . . . 3 . . . 1 . 1 Weapon 1 | . . . . . . . 1 . . Parts Attached 89 | . 2 14 4 10 8 10 24 6 11 Power 9 | . . 1 . 1 1 2 2 . 2 Engine 5 | . . 1 . 1 . 2 . . 1 Core 3 | . . . . . 1 . 2 . . Reactor 1 | . . . . . . . . . 1 Propulsion 26 | . . 4 2 5 2 3 7 1 2 Treads 11 | . . 2 . 3 2 3 1 . . Leg 11 | . . . 2 2 . . 4 1 2 Wheel 3 | . . 2 . . . . 1 . . Hover . | . . . . . . . . . . Flight 1 | . . . . . . . 1 . . Utility 29 | . 2 . 2 2 3 4 9 2 5 Device 10 | . 1 . . 1 1 1 4 . 2 Storage 5 | . 1 . . . . . 4 . . Processor 4 | . . . 1 1 1 . 1 . . Hackware 3 | . . . . . . 1 . 1 1 Protection 7 | . . . 1 . 1 2 . 1 2 Artifact . | . . . . . . . . . . Weapon 25 | . . 9 . 2 2 1 6 3 2 Energy Gun 3 | . . 1 . 1 . . 1 . . Energy Cannon . | . . . . . . . . . . Ballistic Gun 8 | . . 5 . . . . 3 . . Ballistic Cannon 7 | . . . . . 2 1 1 2 1 Launcher 1 | . . . . 1 . . . . . Special Weapon 2 | . . . . . . . . 1 1 Impact Weapon 1 | . . 1 . . . . . . . Slashing Weapon 2 | . . 2 . . . . . . . Piercing Weapon 1 | . . . . . . . 1 . . Special Melee Weapon . | . . . . . . . . . . Unidentified Prototypes 11 | . . . . . . . 8 . 3 Parts Lost 42 | . . 5 . 6 1 7 7 2 14 Power 4 | . . 1 . . 1 1 . . 1 Propulsion 14 | . . 2 . 3 . 1 2 1 5 Utility 13 | . . . . 1 . 4 3 . 5 Weapon 11 | . . 2 . 2 . 1 2 1 3 Highest Loss Streak 11 | . . 2 . 2 1 2 3 1 11 To Critical Strikes 1 | . . . . . . . 1 . . Average Backups 10 | 6 6 7 8 7 8 8 11 16 16 Power . | 1 1 1 1 . . . . 2 2 Propulsion . | 4 2 . . 1 1 . . . . Utility 4 | . . 2 2 1 2 3 6 10 10 Weapon 3 | 1 2 3 4 4 4 3 2 2 1 Tool/Special . | . . . . . . . . . . Unused Backups 23 | . 2 3 . 1 3 1 1 3 9 Power 3 | . . 1 . . . . . . 2 Propulsion 2 | . . 1 . . 1 . . . . Utility 13 | . 2 1 . . . . . 3 7 Weapon 3 | . . . . 1 2 . . . . Tool/Special 2 | . . . . . . 1 1 . . Average Slot Usage (%) 91 | . 87 99 70 94 96 86 78 94 79 Engine 7 | . 14 13 9 9 8 5 4 . . Core 2 | . . . . . . 2 1 7 2 Treads 11 | . . 12 9 5 26 26 16 . . Leg 11 | . 28 11 5 20 . . 1 21 17 Wheel 1 | . . 3 6 . . . . . . Device 11 | . 2 14 9 15 12 3 8 15 11 Storage 11 | . 14 14 9 9 9 9 9 15 12 Processor 6 | . . . 2 15 18 11 4 7 6 Protection 4 | . . . 1 2 5 8 7 5 4 Energy Gun 2 | . 14 5 . . . . . 2 . Ballistic Gun 8 | . 14 14 14 5 . . 10 6 . Ballistic Cannon 6 | . . . . . 12 17 6 9 10 Slashing Weapon 3 | . . 8 3 5 2 . 3 . . Peak Build Rating 77 | 6 7 14 23 23 27 31 63 63 77 Average Rating 30 | 6 6 11 16 19 21 26 39 59 58 On Entrance 25 | 6 6 7 14 23 16 27 29 63 61 Avg Prop Armor Cover (%) 12 | . . 15 12 4 . . 4 . . Naked Turns . | . . . . . . . . . . Heaviest Build 87 | 14 20 21 39 39 33 58 83 84 87 Greatest Support 73 | 20 20 40 30 60 60 60 68 62 73 Greatest Overweight (x) 21 | . . 6 1 7 . . 4 2 21 Average Overweight (x) . | . . . . . . . . 1 1 Largest Inventory Capacity 20 | 8 10 10 10 10 10 10 20 20 20 Average Capacity 13 | 8 9 10 10 10 10 10 17 20 20 Most Carried 20 | 6 8 10 10 10 10 10 20 20 20 Average Carried 11 | 6 6 8 9 7 8 8 11 19 17 Final Capacity 20 | 8 10 10 10 10 10 10 20 20 20 Final Carried 20 | 6 6 9 10 5 10 9 20 19 13 Class Distribution -------------------- 40% | Mutant 21% | Bothacker-Gunner 17% | Scavenger-Mutant 11% | Bothacker-Mutant 5% | Scavenger-Gunner Dominant Class ---------------- Mutant | -10/Materials Mutant | -10/Subcaves Mutant | -8/Materials Scavenger-Mutant | -8/Garrison Mutant | -8/Materials Scavenger-Mutant | -8/Garrison Bothacker-Mutant | -7/Factory Bothacker-Gunner | -7/Garrison Bothacker-Gunner | -6/Factory Resources | -11 -10 -10 -8 -8 -8 -8 -7 -7 -6 ----------- Run | Yrd Mat Sub Mat Gar Mat Gar Fac Gar Fac Matter Collected 5113 | 200 47 450 102 325 409 927 1281 1125 247 Remotely . | . . . . . . . . . . Salvage Created 6226 | . 189 685 136 508 386 792 1705 927 898 Parts 355 | . 13 58 7 29 17 53 101 35 42 Haulers Intercepted 3 | . 1 . . . . . 1 . 1 Recyclers Shooed 1 | . . . . . . . 1 . . Parts Field Recycled . | . . . . . . . . . . Retrieved Matter . | . . . . . . . . . . Parts Self-Destructed 7 | . . 7 . . . . . . . Prevented . | . . . . . . . . . . Parts Restored . | . . . . . . . . . . Kills | -11 -10 -10 -8 -8 -8 -8 -7 -7 -6 ------- Run | Yrd Mat Sub Mat Gar Mat Gar Fac Gar Fac Combat Hostiles Destroyed 140 | . 6 17 1 14 13 30 24 19 16 Melee 16 | . . 5 . 4 1 . 3 . 3 Guns 51 | . 6 11 1 6 . . 18 9 . Cannons 62 | . . . . . 12 26 2 10 12 AOE 10 | . . . . 4 . 4 1 . 1 Classes Destroyed 21 | . 4 3 2 4 1 1 5 . 1 Worker 9 | . . . . . . . 8 . 1 Tunneler 1 | . . . . . . . 1 . . Hauler 3 | . 1 . . . . . 1 . 1 Recycler 3 | . . . 1 . . . 2 . . Mechanic 1 | . . . . . . . 1 . . Operator 3 | . . . . . 2 . . . 1 Turret 2 | . . 2 . . . . . . . Watcher 6 | . 1 . . . 1 . 3 1 . Swarmer 18 | . 5 4 . 3 2 4 . . . Cutter 2 | . . . . . . 2 . . . Saboteur 1 | . . . . . . . . . 1 Grunt 52 | . 1 . . 4 7 14 6 10 10 Brawler 7 | . . . . 1 . . . 4 2 Duelist 2 | . . . . 1 . . . . 1 Sentry 14 | . . . . 2 4 5 . 2 1 Specialist 4 | . . . . . . . 3 1 . Hunter 12 | . . . 1 1 . . 8 2 . Programmer 14 | . . . . 2 . 5 6 . 1 Heavy 1 | . . . . . . . 1 . . Artisan 1 | . . 1 . . . . . . . Subdweller 13 | . . 13 . . . . . . . Infiltrator 1 | . . . . . . . . 1 . Best Kill Streak 14 | . 3 4 2 3 4 9 8 4 14 Combat Bots Only 12 | . 3 4 1 3 4 9 6 4 12 Max Kills in Single Turn 4 | . 1 1 1 2 1 4 4 2 2 Gunslinging . | . . . . . . . . . . Exploded 4 | . . . . 2 . 4 1 . 1 Melee 1 | . . 1 . 1 1 . 1 . 1 Uniques/NPCs Destroyed . | . . . . . . . . . . Combat | -11 -10 -10 -8 -8 -8 -8 -7 -7 -6 -------- Run | Yrd Mat Sub Mat Gar Mat Gar Fac Gar Fac Hostile Shots Fired 956 | . 14 163 8 95 65 129 208 87 187 Missed 293 | . 4 56 1 30 15 43 81 25 38 Hits 663 | . 10 107 7 65 50 86 127 62 149 Melee 10 | . . . . . . 4 . . 6 Projectile 653 | . 10 107 7 65 50 82 127 62 143 AOE 2 | . . . . . . 2 . . . Critical Strikes 34 | . 1 . . 4 2 9 5 2 11 Part Disruptions 2 | . . . . . . . 1 . 1 Damage Taken 8172 | . 67 1024 92 773 584 1191 1749 588 2104 Core 1071 | . 16 141 . 80 36 204 227 85 282 Absorbed by Shields . | . . . . . . . . . . Ignored by Resistances 2308 | . 22 292 27 225 170 310 484 180 598 Core Remaining (%) 58 | 100 . 37 . . . 41 . 55 . Volleys Fired 409 | . 14 79 5 51 36 65 64 68 27 Largest 3 | . 2 2 2 2 2 2 3 3 2 Hottest 123 | . 70 80 53 78 80 80 96 123 101 Shots Fired 864 | . 28 147 10 76 72 133 170 182 46 Gun 496 | . 28 147 10 62 . . 144 105 . Cannon 349 | . . . . . 72 132 26 75 44 Launcher 15 | . . . . 14 . 1 . . . Special 4 | . . . . . . . . 2 2 Kinetic 774 | . 14 108 10 57 72 132 166 171 44 Thermal 38 | . 14 11 . . . . 4 9 . Explosive 15 | . . . . 14 . 1 . . . Electromagnetic 33 | . . 28 . 5 . . . . . Robot Hit Streak 78 | . 5 25 23 14 15 20 65 78 21 Robot Miss Streak 3 | . 2 2 1 2 2 3 1 2 2 Penetration Max 1 | . . . . . 1 1 1 1 1 Secondary Targets 6 | . 1 1 . 1 . . 3 . . Max Gunslinging Chain 1 | . 1 1 . 1 . . 1 . . Shots Hit Robots 641 | . 16 110 7 62 51 83 156 112 44 Core Hits 281 | . 10 35 4 30 17 42 74 43 26 Critical Kills 6 | . . 2 . . . . 1 . 3 Critical Parts Destroyed 13 | . . . . 2 . . 5 1 5 Critical Strikes 52 | . 1 4 . 3 7 11 8 4 14 Burn 3 | . 1 2 . . . . . . . Destroy 20 | . . 2 . 2 . . 6 2 8 Blast 24 | . . . . . 7 11 . 2 4 Sever 3 | . . . . 1 . . 2 . . Impale 2 | . . . . . . . . . 2 Melee Attacks 79 | . . 35 . 19 3 . 10 . 12 Impact 2 | . . 2 . . . . . . . Slashing 65 | . . 33 . 19 3 . 10 . . Piercing 12 | . . . . . . . . . 12 Sneak Attacks 2 | . . 1 . . . . 1 . . Combat Hostiles . | . . . . . . . . . . Follow-up Attacks . | . . . . . . . . . . Damage Inflicted 17151 | . 216 1789 91 1583 1426 2765 4517 2694 2070 Guns 7080 | . 213 1404 91 710 . . 3230 1432 . Cannons 7242 | . . . . . 1382 2593 597 1262 1408 Explosions 1288 | . . . . 500 . 172 338 . 278 Melee 1535 | . . 385 . 373 44 . 349 . 384 Ramming 6 | . 3 . . . . . 3 . . Kinetic 13505 | . 114 853 91 623 1382 2593 3785 2656 1408 Thermal 933 | . 99 138 . . . . 380 38 278 Explosive 672 | . . . . 500 . 172 . . . Electromagnetic 500 | . . 413 . 87 . . . . . Impact . | . . . . . . . . . . Slashing 1151 | . . 385 . 373 44 . 349 . . Piercing 384 | . . . . . . . . . 384 Highest Corruption 10 | . . . . 2 2 10 2 2 1 Average Corruption 3 | . . . . 1 2 7 2 2 1 Corruption Purged . | . . . . . . . . . . Corruption Blocked . | . . . . . . . . . . Effects 84 | . . . . 1 8 42 5 28 . Message Errors 22 | . . . . . 1 10 3 8 . Matter Fused 12 | . . . . . 2 8 . 2 . Heat Flow Errors 10 | . . . . . 1 5 . 4 . Energy Discharges 11 | . . . . . . 7 1 3 . Parts Rejected 2 | . . . . . 1 . . 1 . Data Loss (minor) 10 | . . . . . 1 3 . 6 . Data Loss (major) 4 | . . . . 1 . 1 . 2 . Misfires 7 | . . . . . 1 5 . 1 . Alerts 1 | . . . . . . 1 . . . Weapon Failures 5 | . . . . . 1 2 1 1 . Overload Shots . | . . . . . . . . . . Overflow Damage 407 | . . 32 . 6 17 91 91 72 98 Projectiles 254 | . . . . . 17 91 2 72 72 Explosions 80 | . . . . . . . 57 . 23 Melee 73 | . . 32 . 6 . . 32 . 3 Knockbacks 44 | . . . . . 9 17 7 5 6 Impact . | . . . . . . . . . . Kinetic 42 | . . . . . 9 15 7 5 6 Secondary 2 | . . . . . . 2 . . . Self-Inflicted Damage 181 | . . . . 2 . 13 166 . . Shots 5 | . . . . 1 . 1 3 . . Rammed 1 | . . . . . . . 1 . . Targets Rammed 2 | . 1 . . . . . 1 . . Kicked 1 | . 1 . . . . . . . . Crushed . | . . . . . . . . . . Highest Temperature 585 | . 30 . . 28 252 585 168 339 161 Average Temperature 83 | . 12 . . 8 84 127 29 97 53 Received Heat Transfer 2620 | . 12 408 . 252 378 378 126 273 793 Effects 8 | . . . . . . 7 . 1 . Energy Bleed 3 | . . . . . . 2 . 1 . Short Circuit 1 | . . . . . . 1 . . . Damage (minor) 1 | . . . . . . 1 . . . Damage (major) 1 | . . . . . . 1 . . . Damage (core) 2 | . . . . . . 2 . . . Siege Activations . | . . . . . . . . . . Martial Activations . | . . . . . . . . . . Shielding Activations . | . . . . . . . . . . Robots Disrupted . | . . . . . . . . . . Combat Hostiles . | . . . . . . . . . . Robots Corrupted 1 | . . 1 . . . . . . . Combat Hostiles 1 | . . 1 . . . . . . . Parts Fried 2 | . . 2 . . . . . . . Impact Corruptions . | . . . . . . . . . . Robots Melted . | . . . . . . . . . . Combat Hostiles . | . . . . . . . . . . Parts Melted 3 | . 1 2 . . . . . . . Heat Transferred 1473 | . 370 555 . . . . 274 74 200 Parts Sabotaged 3 | . . . . . . . . . 3 Parts Stolen . | . . . . . . . . . . Parts Stripped . | . . . . . . . . . . Power Chain Reactions . | . . . . . . . . . . Alert | -11 -10 -10 -8 -8 -8 -8 -7 -7 -6 ------- Run | Yrd Mat Sub Mat Gar Mat Gar Fac Gar Fac Maximum Alert Level 5 | . . . . 2 2 4 2 5 3 Low Security (%) 12 | 100 100 . 100 36 . . . . . Level 1 21 | . . . . 14 96 13 43 3 . Level 2 27 | . . . . 49 3 31 56 12 . Level 3 25 | . . . . . . 51 . 35 100 Level 4 8 | . . . . . . 3 . 30 . Level 5 4 | . . . . . . . . 17 . High Security . | . . . . . . . . . . Max Security . | . . . . . . . . . . Peak Influence 1786 | . 94 . 30 650 417 1121 615 1786 1024 Initial 812 | . . . . 2 273 231 509 354 812 Average 635 | . 42 . 8 353 273 722 415 1133 842 Influence Increases 5831 | . 224 240 35 708 434 960 996 1592 642 Destroy 0b10 Robot/C 3060 | . 120 120 20 280 260 600 480 820 360 Destroy 0b10 Robot/NC 135 | . 10 . 5 . 15 . 80 10 15 Destroy Leader 416 | . 34 . 10 10 72 30 158 50 52 Allied During Kill 80 | . . . . . . . . 74 6 Successful Hack 61 | . 30 . . 24 . . 3 . 4 Disable Machine 252 | . . . . . 27 . 198 9 18 Anti-Garrison Action 1050 | . . . . 150 . 250 . 500 150 Destroy Structure 372 | . . . . 94 30 50 62 99 37 Partial Spotted 15 | . . . . 15 . . . . . Lose Combat Pursuer 390 | . 30 120 . 135 30 30 15 30 . Influence Decreases 4837 | . 220 244 30 63 677 246 1542 381 1434 Entered New Map 2366 | . . 3 . 3 377 176 612 221 974 Time Decay 1941 | . 220 241 30 . 290 . 860 . 300 Lost Part 370 | . . . . 60 10 70 70 20 140 Lost Ally 160 | . . . . . . . . 140 20 Squads Dispatched 20 | . 1 . . . 3 . 9 . 7 Investigation 5 | . 1 . . . . . 3 . 1 Extermination 4 | . . . . . . . 3 . 1 Reinforcement 6 | . . . . . 1 . 3 . 2 Assault 3 | . . . . . . . . . 3 Garrison 2 | . . . . . 2 . . . . Intercept . | . . . . . . . . . . Searches Triggered . | . . . . . . . . . . Construction Impeded 1 | . . . . . . . 1 . . Haulers Reinforced . | . . . . . . . . . . Active Scanning Responses . | . . . . . . . . . . Cargo Convoy Interrupts 1 | . . . . . . . 1 . . Stealth | -11 -10 -10 -8 -8 -8 -8 -7 -7 -6 --------- Run | Yrd Mat Sub Mat Gar Mat Gar Fac Gar Fac Distress Signals 5 | . . . . . 2 . 1 2 . Communications Jammed . | . . . . . . . . . . Distress Signals . | . . . . . . . . . . Times Spotted 219 | . 13 26 1 24 18 32 35 37 33 Peak Tracking Total 9 | . 4 6 1 4 6 6 7 4 9 Tactical Retreats 20 | . 1 3 . 9 2 2 1 2 . Traps | -11 -10 -10 -8 -8 -8 -8 -7 -7 -6 ------- Run | Yrd Mat Sub Mat Gar Mat Gar Fac Gar Fac Traps Triggered 15 | . 1 1 . 3 . 1 . 9 . Indirectly . | . . . . . . . . . . Trap Hack Attempts . | . . . . . . . . . . Triggered . | . . . . . . . . . . Disarmed . | . . . . . . . . . . Reprogrammed . | . . . . . . . . . . Reused . | . . . . . . . . . . Traps Extracted . | . . . . . . . . . . Installed . | . . . . . . . . . . Triggered . | . . . . . . . . . . Machines | -11 -10 -10 -8 -8 -8 -8 -7 -7 -6 ---------- Run | Yrd Mat Sub Mat Gar Mat Gar Fac Gar Fac Machines Disabled 40 | . . . . 4 3 2 22 6 3 Max in Single Turn 20 | . . . . 2 2 1 20 1 2 Garrison Access 1 | . . . . . . . . . 1 Garrison Relay 9 | . . . . 2 . 2 . 5 . Phase Generator 1 | . . . . 1 . . . . . Machines Repaired . | . . . . . . . . . . Machines Dismantled . | . . . . . . . . . . Machines Sabotaged . | . . . . . . . . . . Overloaded Fab Kills . | . . . . . . . . . . Hacking | -11 -10 -10 -8 -8 -8 -8 -7 -7 -6 --------- Run | Yrd Mat Sub Mat Gar Mat Gar Fac Gar Fac Machines Accessed 20 | . 5 1 1 2 2 1 4 3 1 Terminals 14 | . 5 . . 2 1 1 1 3 1 Fabricators 1 | . . . . . . . 1 . . Repair Stations . | . . . . . . . . . . Recycling Units . | . . . . . . . . . . Scanalyzers 1 | . . . . . . . 1 . . Garrison Access 3 | . . . 1 . 1 . 1 . . Total Hacks 50 | . 13 4 1 3 6 2 9 8 4 Successful 25 | . 6 4 1 2 3 . 6 2 1 Failed 25 | . 7 . . 1 3 2 3 6 3 Catastrophic 3 | . . . . . 1 . 1 1 . Database Lockouts . | . . . . . . . . . . Manual 24 | . 13 . . . 4 . 3 . 4 Terminals 37 | . 13 . . 3 4 2 3 8 4 Fabricators 2 | . . . . . . . 2 . . Repair Stations . | . . . . . . . . . . Recycling Units . | . . . . . . . . . . Scanalyzers 3 | . . . . . . . 3 . . Garrison Access 4 | . . . 1 . 2 . 1 . . Terminal Hacks 16 | . 6 4 . 2 1 . . 2 1 Record 4 | . . 4 . . . . . . . Part Schematic 4 | . 4 . . . . . . . . Open Door 1 | . . . . . . . . 1 . Branch Access Points 1 | . 1 . . . . . . . . Emergency Access Points 2 | . . . . 1 . . . 1 . Terminal Index 3 | . 1 . . . 1 . . . 1 Garrison Registry 1 | . . . . 1 . . . . . Fabricator Hacks 2 | . . . . . . . 2 . . Load Schematic 1 | . . . . . . . 1 . . Build 1 | . . . . . . . 1 . . Repair Station Hacks . | . . . . . . . . . . Recycling Unit Hacks . | . . . . . . . . . . Scanalyzer 3 | . . . . . . . 3 . . Retrieve Study 3 | . . . . . . . 3 . . Garrison Access Hacks 4 | . . . 1 . 2 . 1 . . Unlock Access 3 | . . . 1 . 1 . 1 . . Coupler Status 1 | . . . . . 1 . . . . Unauthorized Hacks . | . . . . . . . . . . Terminals . | . . . . . . . . . . Fabricators . | . . . . . . . . . . Repair Stations . | . . . . . . . . . . Recycling Units . | . . . . . . . . . . Scanalyzers . | . . . . . . . . . . Garrison Access . | . . . . . . . . . . Data Cores Recovered . | . . . . . . . . . . Used . | . . . . . . . . . . Hacking Detections 15 | . 5 . . 1 2 1 3 2 1 Full Trace Events 6 | . . . . . . 1 3 1 1 Feedback Events . | . . . . . . . . . . Feedback Blocked . | . . . . . . . . . . Robot Schematics Acquired . | . . . . . . . . . . Robots Built . | . . . . . . . . . . Authchips . | . . . . . . . . . . Time . | . . . . . . . . . . Total Robot Build Rating . | . . . . . . . . . . Part Schematics Acquired 4 | . 4 . . . . . . . . Parts Built 1 | . . . . . . . 1 . . Authchips . | . . . . . . . . . . Time 51 | . . . . . . . 51 . . Total Part Build Rating 1 | . . . . . . . 1 . . Part Studies Acquired 3 | . . . . . . . 3 . . Parts Repaired . | . . . . . . . . . . Time . | . . . . . . . . . . Parts Recycled . | . . . . . . . . . . Recycled Matter . | . . . . . . . . . . Retrieved Matter . | . . . . . . . . . . Retrieved Components . | . . . . . . . . . . Parts Scanalyzed . | . . . . . . . . . . Part Schematics Acquired . | . . . . . . . . . . Parts Damaged . | . . . . . . . . . . Bothacking | -11 -10 -10 -8 -8 -8 -8 -7 -7 -6 ------------ Run | Yrd Mat Sub Mat Gar Mat Gar Fac Gar Fac Used RIF Installer 4 | . . . . 1 . 1 . 2 . Hotswap 1 | . . . . . . . . 1 . Signal Jammer 1 | . . . . . . . . 1 . Watcher Feeds 1 | . . . . . . 1 . . . Robots Hacked 3 | . . . . . . . . 1 2 Non-combat 2 | . . . . . . . . 1 1 Combat 1 | . . . . . . . . . 1 Robot Hacks Applied 3 | . . . . . . . . 1 2 parse_system 1 | . . . . . . . . . 1 no_distress 1 | . . . . . . . . 1 . overload_power 1 | . . . . . . . . . 1 Relay Couplers Released 33 | . . . . 7 . 8 . 18 . Machine Destruction 33 | . . . . 7 . 8 . 18 . Attached 2 | . . . . . . . . 1 1 Fabnet Peak Effective % . | . . . . . . . . . . Robots Rewired 8 | . . . . . . . . 8 . Allies Hacked . | . . . . . . . . . . Hacks Repelled . | . . . . . . . . . . Allies | -11 -10 -10 -8 -8 -8 -8 -7 -7 -6 -------- Run | Yrd Mat Sub Mat Gar Mat Gar Fac Gar Fac Total Allies 10 | . . . . . . . . 10 . Largest Group 6 | . . . . . . . . 6 1 Highest-Rated Group 251 | . . . . . . . . 251 92 Highest-Rated Ally 95 | . . . . . . . . 95 92 Total Orders . | . . . . . . . . . . Ally Attacks 90 | . . . . . . . . 82 8 Total Damage 3205 | . . . . . . . . 2856 349 Kills 25 | . . . . . . . . 23 2 Allies Corrupted . | . . . . . . . . . . Allies Melted . | . . . . . . . . . . Intel | -11 -10 -10 -8 -8 -8 -8 -7 -7 -6 ------- Run | Yrd Mat Sub Mat Gar Mat Gar Fac Gar Fac Active Infowar (turns) 5090 | . 86 2847 104 1127 596 297 . . 33 Optics 298 | . . . . 298 . . . . . Sensors 880 | . . . . . 583 297 . . . A.S.S. 32 | . . . . . . . . . 32 Seismic 4420 | . 86 2847 104 1127 256 . . . . Spoofing 2 | . . . . . . . . . 2 Robot Analysis Total . | . . . . . . . . . . Derelict Logs Recovered 2 | . . 2 . . . . . . . Drone Launches . | . . . . . . . . . . Drone Recoveries . | . . . . . . . . . . Exploration | -11 -10 -10 -8 -8 -8 -8 -7 -7 -6 ------------- Run | Yrd Mat Sub Mat Gar Mat Gar Fac Gar Fac Turns Passed 10988 | 2 519 2847 104 1127 596 1362 1721 2093 617 Spaces Moved 5433 | 2 336 1591 58 676 272 696 687 859 256 Core 48 | . . 38 . 2 . . 7 . 1 Treads 2251 | . . 565 . 92 272 696 626 . . Legs 2658 | 2 336 568 13 582 . . 43 859 255 Wheels 476 | . . 420 45 . . . 11 . . Hover . | . . . . . . . . . . Flight . | . . . . . . . . . . Fastest Speed 120 | 120 120 120 120 120 160 160 160 183 180 Average Speed 167 | 120 120 158 133 135 162 162 203 201 186 Slowest Speed 1100 | 120 120 350 190 400 165 165 250 260 1100 Overloaded Moves . | . . . . . . . . . . Propulsion Burnouts . | . . . . . . . . . . Robots Hopped . | . . . . . . . . . . Potential Cave-ins . | . . . . . . . . . . Cave-ins Triggered . | . . . . . . . . . . Exploration Rate (%) 42 | 2 74 83 7 67 28 56 17 88 6 Regions Visited 9 Branch Regions 1 Pre-discovered Areas 2 | . . 2 . . . . . . . Known Exits Taken 4 | . . 1 1 . 1 . 1 . . Unknown Exits Taken 2 | 1 1 . . . . . . . . Scrap Searched 9 | . . 9 . . . . . . . Spaces Dug 12 | . . 9 . . 2 . 1 . . Terrain Destroyed 263 | . . 9 . 113 30 2 61 13 35 Melee 11 | . . 9 . . 2 . . . . Projectile 61 | . . . . . 28 2 12 13 6 AOE 190 | . . . . 113 . . 48 . 29 Terrain Rammed . | . . . . . . . . . . Walls Destroyed . | . . . . . . . . . . Machines Disabled . | . . . . . . . . . . Actions | -11 -10 -10 -8 -8 -8 -8 -7 -7 -6 --------- Run | Yrd Mat Sub Mat Gar Mat Gar Fac Gar Fac Total 6479 | 1 424 1739 75 787 354 803 857 1106 333 Wait 201 | . 65 . 1 4 13 9 30 79 . Move 5426 | 1 335 1590 58 675 272 695 686 858 256 Hop . | . . . . . . . . . . Pick Up 99 | . 4 12 4 7 13 12 25 9 13 Fast Attach 12 | . . 2 3 . 1 . 3 3 . Attach 70 | . 1 7 2 9 6 9 15 4 17 Detach 8 | . . 1 . . 2 . 3 1 1 Swap 26 | . 1 6 . 2 1 4 11 . 1 Drop 57 | . 3 7 2 5 7 6 9 12 6 Fire 409 | . 14 79 5 51 36 65 64 68 27 Melee 79 | . . 35 . 19 3 . 10 . 12 Ram . | . . . . . . . . . . Kick 1 | . 1 . . . . . . . . Crush 1 | . . . . . . . 1 . . Escape Stasis 50 | . . . . 15 . . . 35 . Rewire 40 | . . . . . . 3 . 37 . Trap . | . . . . . . . . . . Miscellaneous . | . . . . . . . . . . Route ------- -11/Scrapyard -10/Materials (discovered 4 exits: [*Mat x2] / *Min / *Sub) -10/Subcaves (discovered 3 exits: *Mat x2 / [*Rec]) -8/Materials -8/Garrison (discovered 3 exits: *Mat x3) -8/Materials -8/Garrison (discovered 2 exits: *Fac x2) -7/Factory -7/Garrison (discovered 3 exits: *Fac x3) -6/Factory History --------- Turn | Location | Event 1 | -11/Scrapyard | Discovered new exit (range 1) 3 | -11/Scrapyard | Entered Materials 105 | -10/Materials | Identified exit to Mines 115 | -10/Materials | Discovered new exit (range 10) 305 | -10/Materials | Build established: Mutant 372 | -10/Materials | Discovered new exit (range 10) 516 | -10/Materials | Discovered new exit (range 5) 522 | -10/Materials | Entered Subcaves 523 | -10/Subcaves | Approached by a straggling Scientist 525 | -10/Subcaves | Shifting Twisted Machinery released Riot Gun 525 | -10/Subcaves | Learned location of Mines (-10) 1377 | -10/Subcaves | Shifting Twisted Machinery released Mak. Sword 1421 | -10/Subcaves | Shifting Twisted Machinery released Flamer 1439 | -10/Subcaves | Discovered new exit (range 6) 1539 | -10/Subcaves | Disturbed a concealed Subdweller 2104 | -10/Subcaves | Discovered new exit (range 10) 2155 | -10/Subcaves | Core integrity fell below 50% 2427 | -10/Subcaves | Visited Clippyterm 2432 | -10/Subcaves | Identified exit to Materials 2452 | -10/Subcaves | A swath of the cavern ceiling suddenly collapsed 2534 | -10/Subcaves | Learned location of Zion (-7) 2613 | -10/Subcaves | Shifting Twisted Machinery released Sub. Laser 2644 | -10/Subcaves | Shifting Twisted Machinery released Ripper 3369 | -10/Subcaves | Entered Materials 3369 | -8/Materials | Evolved 4 slots: Propulsion x1, Utility x3 3473 | -8/Materials | Identified exit to Garrison 3473 | -8/Materials | Entered Garrison 3621 | -8/Garrison | Triggered checkpoint 3657 | -8/Garrison | Triggered checkpoint 3887 | -8/Garrison | Triggered checkpoint 3904 | -8/Garrison | Garrison Relay disabled 3995 | -8/Garrison | Garrison Relay disabled 4002 | -8/Garrison | Triggered checkpoint 4036 | -8/Garrison | Build established: Scavenger-Mutant 4048 | -8/Garrison | Phase Generator disabled 4071 | -8/Garrison | Discovered new exit (range 104) 4071 | -8/Garrison | Discovered new exit (range 67) 4071 | -8/Garrison | Discovered new exit (range 11) 4083 | -8/Garrison | Identified exit to Materials 4155 | -8/Garrison | Triggered checkpoint 4290 | -8/Garrison | Installed Relay Interface Framework 4369 | -8/Garrison | Triggered checkpoint 4600 | -8/Garrison | Entered Materials 4952 | -8/Materials | Garrison activated, responded to threat 5066 | -8/Materials | Build established: Mutant 5153 | -8/Materials | Garrison activated, responded to threat 5196 | -8/Materials | Identified exit to Garrison 5196 | -8/Materials | Entered Garrison 5292 | -8/Garrison | Triggered checkpoint 5376 | -8/Garrison | Triggered checkpoint 5376 | -8/Garrison | Triggered checkpoint 5426 | -8/Garrison | Destroyed 9 combat bots 5638 | -8/Garrison | Triggered checkpoint 5674 | -8/Garrison | Expanded RIF knowledge: Watcher Feeds 5796 | -8/Garrison | Discovered new exit (range 11) 5836 | -8/Garrison | Triggered checkpoint 5906 | -8/Garrison | Garrison Relay disabled 6085 | -8/Garrison | System corruption reached 10% 6178 | -8/Garrison | Discovered new exit (range 10) 6276 | -8/Garrison | Triggered checkpoint 6319 | -8/Garrison | Core integrity fell below 50% 6359 | -8/Garrison | Build established: Scavenger-Mutant 6508 | -8/Garrison | Garrison Relay disabled 6558 | -8/Garrison | Entered Factory 6558 | -7/Factory | Evolved 2 slots: Utility x1, Weapon x1 6732 | -7/Factory | Fabricated Lrg. Storage Unit? 7067 | -7/Factory | Build established: Bothacker-Mutant 7772 | -7/Factory | Cargo convoy interrupted 7842 | -7/Factory | Found PL-3XN's Ring of Power 7912 | -7/Factory | Build established: Bothacker-Gunner 8164 | -7/Factory | Lost 3 parts (1n1u1w) 8214 | -7/Factory | Found Prototype Device 8267 | -7/Factory | Identified exit to Garrison 8279 | -7/Factory | Entered Garrison 8303 | -7/Garrison | Triggered checkpoint 8339 | -7/Garrison | Triggered checkpoint 8441 | -7/Garrison | Garrison Relay disabled 8510 | -7/Garrison | Build established: Scavenger-Gunner 8526 | -7/Garrison | Garrison Relay disabled 8660 | -7/Garrison | Triggered checkpoint 8838 | -7/Garrison | Lost 4 allies 8919 | -7/Garrison | Triggered checkpoint 9013 | -7/Garrison | Triggered checkpoint 9119 | -7/Garrison | Garrison Relay disabled 9154 | -7/Garrison | Expanded RIF knowledge: Hotswap 9170 | -7/Garrison | Found embedded Infiltrators 9173 | -7/Garrison | Triggered checkpoint 9252 | -7/Garrison | Discovered new exit (range 13) 9333 | -7/Garrison | Build established: Bothacker-Gunner 9481 | -7/Garrison | Triggered checkpoint 9543 | -7/Garrison | Garrison Relay disabled 9624 | -7/Garrison | Discovered new exit (range 10) 9960 | -7/Garrison | Expanded RIF knowledge: Signal Jamming 9975 | -7/Garrison | Discovered new exit (range 11) 9993 | -7/Garrison | Triggered checkpoint 10007 | -7/Garrison | Garrison Relay disabled 10372 | -7/Garrison | Entered Factory 10372 | -6/Factory | Accompanied by 1 ally 10372 | -6/Factory | Evolved 2 slots: Propulsion x1, Utility x1 10464 | -6/Factory | Identified Active Sensor Suite 10722 | -6/Factory | First assault squad dispatched 10989 | -6/Factory | Self-destructed Last Messages --------------- 10977_ K-01 Serf collects debris. 10978_ U-05 Engineer lays Concrete. 10980_ Carbon-fiber Leg destroyed. 10980_ R-10 Processor collects Carbon-fiber Leg. 10980_ K-01 Serf collects debris. 10980_ U-05 Engineer lays Concrete. 10983_ R-10 Processor collects Lgt. Angular Momentum Engine. 10983_ Cold Fusion Reactor destroyed. 10983_ Critical hit (Burn: +37). 10983_ K-01 Serf collects debris. 10984_ Hrd. Medium Armor Plating destroyed. 10984_ U-05 Engineer lays Concrete. 10985_ Carbon-fiber Leg destroyed. 10985_ U-05 Engineer lays Concrete. 10986_ M-28 Smith fits Backup Propulsion III on A-15 Conveyor. 10987_ R-10 Processor collects Med. Treads+. 10987_ G-50 Soldier destroyed. 10988_ K-01 Serf collects debris. 10988_ U-05 Engineer lays Concrete. [Achievement: Achiever] Map ----- +----------------------------------------------------+ | ?????????????????????????????????????????????????? | | ?????????????????????????????????????????????????? | | ?????????????????????????????????????????????????? | | ?????????????????????????????????????????????????? | | ?????????????????????????????????????????????????? | | ??????????????????????????????????##+######??????? | | ??????????????????????????????????# #??????? | | ??????????????????????????????????# """" #??????? | | ??????????????????????????????????# """" #??????? | | ???????????????????????%######????# """" #??????? | | ??????????????????????# #"""""????# """" #??????? | | ????????????????????###%#""T""###?# """" #??????? | | ????????????????????# R% % #?# """" #??????? | | ????????????? ????#%% % #?# """" #??????? | | ?????????????!!!!!??# ### #??????? | | ???????????? !!! ""?# << + ! #??????? | | ???????????? !!! ## <